Cogmind - Beta 13 @@@ ROGUE MODE // 2024.07.08 @ 21:04:23 Player: JackZewap Result: Destroyed by S-43 Plague with Heavy Machine Gun Performance ------------- Evolutions (6) 3000 Regions Visited (15) 3000 Robots Destroyed (43) 215 Value Destroyed (1595) 1595 Prototype IDs (37) 740 Alien Tech Used (2) 400 Bonus (1413) 1413 TOTAL SCORE: 10363 Bonus ------- High Alert Combat Kills 74 Follower Combat Kills 339 Entered Garrisons 200 Used RIF Installer 500 Met Zhirov 300 Cogmind --------- Core Integrity 0/1150 Matter 276/300 Energy 100/100 System Corruption 0% Temperature Cool (0) Movement Core (50) Location -3/Proximity Caves Parts ------- > --- POWER (1) -------- (None) > --- PROPULSION (4) --- (None) > --- UTILITY (12) ----- Advanced Signal Interpreter Advanced Target Analyzer System Shield Improved System Shield > --- WEAPON (2) ------- (None) > --- INVENTORY (5) ---- Improved Sensor Array Improved Reaction Control System Relay Coupler [NC] (31) Advanced Datajack Powered Hammer Peak State ------------ > --- POWER ------------ Light Antimatter Reactor > --- PROPULSION ------- Improved Cesium-ion Thruster Cooled VTOL Module Cooled VTOL Module Impulse Thruster > --- UTILITY ---------- Improved Trap Scanner Advanced Sensor Array Improved Signal Interpreter Improved Reaction Control System Phase Shifter Hacking Suite Hacking Suite Hacking Suite System Shield System Shield Improved System Shield Relay Coupler [Grunt] > --- WEAPON ----------- Quantum Rifle Quantum Rifle > --- INVENTORY -------- Advanced Target Analyzer Relay Coupler [NC] Heavy Rocket Launcher Advanced Datajack [Rating: 92] Favorites ----------- Power Light Quantum Reactor Engine Heavy Deuterium Engine Power Core Light Nuclear Core Reactor Light Quantum Reactor Propulsion Cooled VTOL Module Treads Light Treads Flight Unit Cooled VTOL Module Utility Hacking Suite Device Improved Reaction Control System Storage Small Storage Unit Processor Improved Signal Interpreter Hackware Hacking Suite Protection Insulated Plating Weapon Impact Mace Energy Gun Medium Laser Ballistic Gun KE Penetrator Ballistic Cannon Light Cannon Launcher Heavy Rocket Launcher Special Weapon Improved Remote Datajack Impact Weapon Impact Mace Special Melee Weapon Improved Datajack Build | -11 -10 -9 -9 -8 -7 -7 -7 -5 -5 -5 -4 -4 -4 -4 -3 ------- Run | Yrd Mat Mat Min Mat Fac Sto Rec Fac Gar Fac Fac Upp Upp Zhi Pro Slots Evolved 12 | . . 2 . 2 2 . . 4 . . 2 . . . . Power . | . . . . . . . . . . . . . . . . Propulsion 2 | . . . . . 1 . . . . . 1 . . . . Utility 10 | . . 2 . 2 1 . . 4 . . 1 . . . . Weapon . | . . . . . . . . . . . . . . . . Parts Attached 112 | 6 6 12 . 7 6 16 3 8 12 6 9 12 . 5 4 Power 17 | 1 1 1 . 2 1 2 . . 3 2 2 1 . . 1 Engine 5 | 1 . . . 1 . 2 . . 1 . . . . . . Core 4 | . 1 1 . 1 1 . . . . . . . . . . Reactor 8 | . . . . . . . . . 2 2 2 1 . . 1 Propulsion 26 | 2 . 5 . 1 1 7 . . 3 2 5 . . . . Treads 2 | 2 . . . . . . . . . . . . . . . Leg . | . . . . . . . . . . . . . . . . Wheel . | . . . . . . . . . . . . . . . . Hover . | . . . . . . . . . . . . . . . . Flight 24 | . . 5 . 1 1 7 . . 3 2 5 . . . . Utility 40 | 1 2 4 . 2 1 6 3 5 2 1 1 5 . 4 3 Device 14 | . 1 . . . 1 2 . 3 1 . 1 3 . 1 1 Storage 4 | 1 1 . . . . 1 . . . . . . . 1 . Processor 5 | . . . . . . 1 . . . 1 . 1 . . 2 Hackware 13 | . . 4 . 2 . 1 1 2 1 . . 1 . 1 . Protection 4 | . . . . . . 1 2 . . . . . . 1 . Artifact . | . . . . . . . . . . . . . . . . Weapon 29 | 2 3 2 . 2 3 1 . 3 4 1 1 6 . 1 . Energy Gun 5 | 2 . . . . . . . 1 . . . 2 . . . Energy Cannon . | . . . . . . . . . . . . . . . . Ballistic Gun 2 | . . . . . . . . 1 1 . . . . . . Ballistic Cannon 7 | . 3 2 . 1 1 . . . . . . . . . . Launcher 2 | . . . . 1 . . . . . . . 1 . . . Special Weapon 1 | . . . . . . . . . . 1 . . . . . Impact Weapon 8 | . . . . . 1 1 . 1 3 . . 1 . 1 . Slashing Weapon . | . . . . . . . . . . . . . . . . Piercing Weapon . | . . . . . . . . . . . . . . . . Special Melee Weapon 4 | . . . . . 1 . . . . . 1 2 . . . Unidentified Prototypes 9 | . . 1 . . . 3 . . . . . . . 5 . Corrupted Parts 1 | . . . . . . . . . . 1 . . . . . System Corruption 3 | . . . . . . . . . . 3 . . . . . Parts Lost 27 | . . 2 1 . . 5 . . . 1 3 3 . . 12 Power 1 | . . . . . . . . . . . . . . . 1 Propulsion 7 | . . 2 1 . . . . . . . . 1 . . 3 Utility 18 | . . . . . . 5 . . . 1 2 2 . . 8 Weapon 1 | . . . . . . . . . . . 1 . . . . Highest Loss Streak 7 | . . 1 1 . . 3 . . . 1 3 3 . . 7 To Critical Strikes . | . . . . . . . . . . . . . . . . Average Slot Usage (%) 89 | . 97 75 . 89 95 85 91 90 91 91 84 90 73 76 60 Engine 2 | . 7 . . 6 . 1 7 5 . . . . . . . Core 2 | . 6 9 . 2 7 4 . . . . . . . . . Reactor 1 | . . . . . . . . . 4 4 4 5 5 5 2 Treads 4 | . 28 2 . . . . . . . . . . . . . Flight 16 | . . 18 . 18 23 23 23 17 17 17 21 20 15 15 9 Device 10 | . 12 1 . . 6 7 7 13 17 17 10 14 10 10 7 Storage 4 | . 14 1 . . . 5 7 5 5 5 5 1 . . . Processor 3 | . . . . . . 3 7 5 5 3 5 8 10 10 9 Hackware 30 | . . 36 . 53 46 27 22 29 30 35 31 35 31 32 29 Protection 1 | . . . . . . . 7 5 3 . . . . . . Ballistic Cannon 5 | . 22 6 . 9 5 . . . . . . . . . . Impact Weapon 1 | . . . . . 1 7 7 5 2 . . 2 . . . Naked Turns 2 | . . 2 . . . . . . . . . . . . . Heaviest Build 31 | 11 22 22 9 9 15 22 22 28 31 27 29 30 17 20 18 Greatest Support 40 | 40 40 40 10 10 15 27 25 25 26 26 33 23 17 17 19 Greatest Overweight (x) 2 | . . . 1 . . . . 1 2 1 1 1 . 1 1 Average Overweight (x) . | . . . . . . . . . . . . . . . . Largest Inventory Capacity 10 | 8 10 10 5 5 5 8 8 8 8 8 8 8 5 5 5 Average Capacity 6 | 6 8 5 5 5 5 7 8 8 8 8 8 6 5 5 5 Most Carried 10 | . 10 10 5 5 5 8 8 8 8 8 8 8 5 5 5 Average Carried 6 | . 5 4 5 4 4 6 7 5 7 7 7 5 5 4 4 Final Capacity 10 | 8 10 5 5 5 5 8 8 8 8 8 8 5 5 5 5 Final Carried 10 | . 10 5 5 5 5 8 8 8 8 7 8 5 5 5 5 Class Distribution -------------------- 36% | Hacker-Sprinter 16% | Mutant 16% | Wizard-Sprinter 11% | Hacker-Mutant 11% | Wizard-Mutant 8% | Wizard-Scout Dominant Class ---------------- Mutant | -10/Materials Hacker-Mutant | -9/Materials Hacker-Mutant | -9/Mines Wizard-Mutant | -8/Materials Wizard-Sprinter | -7/Factory Hacker-Sprinter | -7/Storage Hacker-Sprinter | -7/Recycling Hacker-Sprinter | -5/Factory Hacker-Sprinter | -5/Garrison Hacker-Mutant | -5/Factory Hacker-Mutant | -4/Factory Wizard-Scout | -4/Upper Caves Hacker-Sprinter | -4/Upper Caves Wizard-Sprinter | -4/Zhirov Wizard-Sprinter | -3/Proximity Caves Resources | -11 -10 -9 -9 -8 -7 -7 -7 -5 -5 -5 -4 -4 -4 -4 -3 ----------- Run | Yrd Mat Mat Min Mat Fac Sto Rec Fac Gar Fac Fac Upp Upp Zhi Pro Matter Collected 1771 | 228 286 176 . 114 65 268 50 70 . 173 18 89 86 116 32 Remotely . | . . . . . . . . . . . . . . . . Salvage Created 1115 | . 405 63 . 157 65 195 . 16 . 98 . . . 116 . Parts 67 | . 30 6 . 19 2 2 . . . 7 . . . 1 . Haulers Intercepted 4 | . 2 . . 1 1 . . . . . . . . . . Recyclers Shooed . | . . . . . . . . . . . . . . . . Parts Field Recycled . | . . . . . . . . . . . . . . . . Retrieved Matter . | . . . . . . . . . . . . . . . . Parts Self-Destructed 4 | . . . . . . . . . . . . . 4 . . Prevented 1 | . . . . . . . . . . . . . . 1 . Kills | -11 -10 -9 -9 -8 -7 -7 -7 -5 -5 -5 -4 -4 -4 -4 -3 ------- Run | Yrd Mat Mat Min Mat Fac Sto Rec Fac Gar Fac Fac Upp Upp Zhi Pro Combat Hostiles Destroyed 32 | . 6 4 . 12 . 7 . . . 2 . 1 . . . Melee 5 | . . . . . . 4 . . . 1 . . . . . Guns 4 | . 4 . . . . . . . . . . . . . . Cannons 11 | . 2 4 . 5 . . . . . . . . . . . AOE 8 | . . . . 7 . . . . . . . 1 . . . Classes Destroyed 8 | . 5 2 . . . 1 . . . . . . . . . Builder 1 | . 1 . . . . . . . . . . . . . . Hauler 4 | . 2 . . 1 1 . . . . . . . . . . Operator 3 | . 1 . . 1 . . . 1 . . . . . . . Watcher 3 | . 1 . . 1 1 . . . . . . . . . . Swarmer 17 | . . 3 . 10 . 4 . . . . . . . . . Grunt 11 | . 6 . . 2 . 2 . . . 1 . . . . . Sentry 2 | . . 1 . . . . . . . . . 1 . . . Programmer 2 | . . . . . . 1 . . . 1 . . . . . Best Kill Streak 7 | . 2 3 . 7 1 4 . 1 . 2 . 1 . . . Combat Bots Only 7 | . 2 3 . 7 . 4 . . . 2 . 1 . . . Max Kills in Single Turn 3 | . 1 1 . 3 1 1 . 1 . 1 . 1 . . . Gunslinging . | . . . . . . . . . . . . . . . . Exploded 3 | . . . . 3 . . . . . . . 1 . . . Melee 1 | . . . . . . 1 . . . 1 . . . . . Uniques/NPCs Destroyed . | . . . . . . . . . . . . . . . . Combat | -11 -10 -9 -9 -8 -7 -7 -7 -5 -5 -5 -4 -4 -4 -4 -3 -------- Run | Yrd Mat Mat Min Mat Fac Sto Rec Fac Gar Fac Fac Upp Upp Zhi Pro Hostile Shots Fired 379 | . 15 33 7 49 29 79 . 3 4 7 24 13 9 . 107 Missed 181 | . 5 11 5 27 23 29 . . 4 6 13 5 3 . 50 Damage Taken 3317 | . 132 224 18 236 24 721 . 75 . 62 288 183 82 . 1272 Core 1621 | . 41 79 . 96 6 287 . 35 . . 60 23 53 . 941 Absorbed by Shields 95 | . . . . . . 28 . 7 . . 60 . . . . Core Remaining (%) 83 | 100 83 . 80 82 . . 58 . . 96 . . . . . Volleys Fired 94 | . 28 16 . 30 10 . . . 1 1 . 8 . . . Largest 2 | . 2 1 . 1 1 . . . 1 1 . 1 . . . Hottest 90 | . 90 39 . 39 48 . . . 33 7 . 39 . . . Shots Fired 119 | . 53 16 . 30 10 . . . 1 1 . 8 . . . Gun 28 | . 27 . . . . . . . 1 . . . . . . Cannon 79 | . 26 16 . 27 10 . . . . . . . . . . Launcher 11 | . . . . 3 . . . . . . . 8 . . . Special 1 | . . . . . . . . . . 1 . . . . . Kinetic 80 | . 26 16 . 27 10 . . . 1 . . . . . . Thermal 27 | . 27 . . . . . . . . . . . . . . Explosive 11 | . . . . 3 . . . . . . . 8 . . . Electromagnetic . | . . . . . . . . . . . . . . . . Robot Hit Streak 12 | . 12 4 . 8 1 . . . . 1 . . . . . Robot Miss Streak 5 | . 4 3 . 3 5 . . . . . . . . . . Penetration Max . | . . . . . . . . . . . . . . . . Secondary Targets 1 | . 1 . . . . . . . . . . . . . . Max Gunslinging Chain 1 | . 1 . . . . . . . . . . . . . . Shots Hit Robots 94 | . 32 9 . 19 4 20 . 1 . 4 2 1 . 2 . Core Hits 48 | . 19 4 . 17 1 2 . . 1 . . 4 . . . Critical Kills 1 | . . . . . . 1 . . . . . . . . . Critical Parts Destroyed 7 | . . . . . 1 3 . 1 . 2 . . . . . Critical Strikes 11 | . . . . 3 1 4 . 1 . 2 . . . . . Blast 3 | . . . . 3 . . . . . . . . . . . Smash 8 | . . . . . 1 4 . 1 . 2 . . . . . Melee Attacks 73 | . . . . . 7 42 . 5 7 6 2 2 . 2 . Impact 70 | . . . . . 7 42 . 5 7 6 . 1 . 2 . Slashing . | . . . . . . . . . . . . . . . . Piercing . | . . . . . . . . . . . . . . . . Sneak Attacks 5 | . . . . . 1 1 . . . . 2 1 . . . Combat Hostiles 2 | . . . . . . . . . . . 2 . . . . Follow-up Attacks . | . . . . . . . . . . . . . . . . Damage Inflicted 3601 | . 478 183 . 930 272 980 . 81 131 160 . 168 . 218 . Guns 251 | . 251 . . . . . . . . . . . . . . Cannons 847 | . 227 183 . 413 24 . . . . . . . . . . Explosions 816 | . . . . 517 . . . . 131 . . 168 . . . Melee 1687 | . . . . . 248 980 . 81 . 160 . . . 218 . Ramming . | . . . . . . . . . . . . . . . . Kinetic 847 | . 227 183 . 413 24 . . . . . . . . . . Thermal 251 | . 251 . . . . . . . . . . . . . . Explosive 816 | . . . . 517 . . . . 131 . . 168 . . . Electromagnetic . | . . . . . . . . . . . . . . . . Impact 1687 | . . . . . 248 980 . 81 . 160 . . . 218 . Slashing . | . . . . . . . . . . . . . . . . Piercing . | . . . . . . . . . . . . . . . . Highest Corruption 5 | . . . . . . 2 2 . . 5 . . . . . Average Corruption 3 | . . . . . . 1 2 . . 4 . . . . . Corruption Purged . | . . . . . . . . . . . . . . . . Corruption Blocked . | . . . . . . . . . . . . . . . . Effects 2 | . . . . . . . 2 . . . . . . . . Data Loss (minor) 1 | . . . . . . . 1 . . . . . . . . Alerts 1 | . . . . . . . 1 . . . . . . . . Overload Shots . | . . . . . . . . . . . . . . . . Overflow Damage 801 | . 5 11 . 50 170 207 . 81 . 130 . . . 147 . Projectiles 35 | . 5 11 . 19 . . . . . . . . . . . Explosions 31 | . . . . 31 . . . . . . . . . . . Melee 735 | . . . . . 170 207 . 81 . 130 . . . 147 . Knockbacks 15 | . 3 2 . 5 . 4 . 1 . . . . . . . Impact 5 | . . . . . . 4 . 1 . . . . . . . Kinetic 9 | . 3 2 . 4 . . . . . . . . . . . Secondary 1 | . . . . 1 . . . . . . . . . . . Self-Inflicted Damage . | . . . . . . . . . . . . . . . . Shots . | . . . . . . . . . . . . . . . . Rammed . | . . . . . . . . . . . . . . . . Targets Rammed . | . . . . . . . . . . . . . . . . Kicked . | . . . . . . . . . . . . . . . . Crushed . | . . . . . . . . . . . . . . . . Highest Temperature 213 | . 213 20 . 23 . 7 . . . . . . . . 3 Average Temperature 66 | . 90 13 . 13 . 4 . . . . . . . . 3 Received Heat Transfer 572 | . 75 63 . 72 . 171 . . . . 9 27 . . 155 Siege Activations . | . . . . . . . . . . . . . . . . Robots Corrupted . | . . . . . . . . . . . . . . . . Combat Hostiles . | . . . . . . . . . . . . . . . . Parts Fried 9 | . . . . . 2 5 . 1 . 1 . . . . . Impact Corruptions 26 | . . . . . 3 13 . 3 . 4 . . . 3 . Robots Melted . | . . . . . . . . . . . . . . . . Combat Hostiles . | . . . . . . . . . . . . . . . . Parts Melted 2 | . 2 . . . . . . . . . . . . . . Heat Transferred 681 | . 681 . . . . . . . . . . . . . . Parts Sabotaged . | . . . . . . . . . . . . . . . . Parts Stolen . | . . . . . . . . . . . . . . . . Parts Stripped . | . . . . . . . . . . . . . . . . Power Chain Reactions . | . . . . . . . . . . . . . . . . Alert | -11 -10 -9 -9 -8 -7 -7 -7 -5 -5 -5 -4 -4 -4 -4 -3 ------- Run | Yrd Mat Mat Min Mat Fac Sto Rec Fac Gar Fac Fac Upp Upp Zhi Pro Peak Influence 645 | . 230 280 129 509 283 597 242 242 645 523 434 . . . . Initial 338 | . . 27 114 46 193 109 232 88 169 338 256 . . . . Average 237 | . 91 132 124 187 199 307 102 173 409 497 317 . . . . Maximum Alert Level 2 | . 1 1 . 2 1 2 1 1 2 2 2 . . . . Low Security (%) 48 | 100 97 85 100 55 38 37 92 63 3 . 17 . . . . Level 1 31 | . 2 14 . 26 61 26 7 36 52 8 54 . . . . Level 2 20 | . . . . 18 . 36 . . 43 91 28 . . . . Level 3 . | . . . . . . . . . . . . . . . . Level 4 . | . . . . . . . . . . . . . . . . Level 5 . | . . . . . . . . . . . . . . . . High Security . | . . . . . . . . . . . . . . . . Max Security . | . . . . . . . . . . . . . . . . Squads Dispatched 7 | . . . . 1 . 3 . 1 . 1 1 . . . . Investigation 1 | . . . . . . 1 . . . . . . . . . Extermination 2 | . . . . . . 1 . 1 . . . . . . . Reinforcement 4 | . . . . 1 . 1 . . . 1 1 . . . . Assault . | . . . . . . . . . . . . . . . . Garrison . | . . . . . . . . . . . . . . . . Intercept . | . . . . . . . . . . . . . . . . Searches Triggered . | . . . . . . . . . . . . . . . . Construction Impeded . | . . . . . . . . . . . . . . . . Haulers Reinforced 1 | . . . . . . 1 . . . . . . . . . Active Scanning Responses . | . . . . . . . . . . . . . . . . Cargo Convoy Interrupts . | . . . . . . . . . . . . . . . . Stealth | -11 -10 -9 -9 -8 -7 -7 -7 -5 -5 -5 -4 -4 -4 -4 -3 --------- Run | Yrd Mat Mat Min Mat Fac Sto Rec Fac Gar Fac Fac Upp Upp Zhi Pro Distress Signals 6 | . . 1 . 2 1 1 . . . 1 . . . . . Communications Jammed 1 | . . . . . . . . . . 1 . . . . . Distress Signals 1 | . . . . . . . . . . 1 . . . . . Times Spotted 173 | . 13 14 4 27 20 24 . 5 2 6 8 5 7 . 38 Peak Tracking Total 26 | . 2 6 4 18 8 11 . 4 1 3 4 4 6 . 26 Tactical Retreats 29 | . . 3 . 5 6 5 . . 2 . 1 . 2 . 5 Traps | -11 -10 -9 -9 -8 -7 -7 -7 -5 -5 -5 -4 -4 -4 -4 -3 ------- Run | Yrd Mat Mat Min Mat Fac Sto Rec Fac Gar Fac Fac Upp Upp Zhi Pro Traps Triggered 5 | . 1 . . . . 2 . 1 1 . . . . . . Indirectly . | . . . . . . . . . . . . . . . . Trap Hack Attempts . | . . . . . . . . . . . . . . . . Triggered . | . . . . . . . . . . . . . . . . Disarmed . | . . . . . . . . . . . . . . . . Reprogrammed . | . . . . . . . . . . . . . . . . Reused . | . . . . . . . . . . . . . . . . Traps Extracted . | . . . . . . . . . . . . . . . . Installed . | . . . . . . . . . . . . . . . . Triggered . | . . . . . . . . . . . . . . . . Machines | -11 -10 -9 -9 -8 -7 -7 -7 -5 -5 -5 -4 -4 -4 -4 -3 ---------- Run | Yrd Mat Mat Min Mat Fac Sto Rec Fac Gar Fac Fac Upp Upp Zhi Pro Machines Disabled 13 | . . . . 1 . 4 . . 2 1 5 . . . . Max in Single Turn 1 | . . . . 1 . 1 . . 1 . . . . . . Garrison Access 2 | . . . . . 1 . . 1 . . . . . . . Garrison Relay 1 | . . . . . . . . . 1 . . . . . . Phase Generator 1 | . . . . . . . . . 1 . . . . . . Machines Repaired . | . . . . . . . . . . . . . . . . Machines Dismantled . | . . . . . . . . . . . . . . . . Machines Sabotaged . | . . . . . . . . . . . . . . . . Overloaded Fab Kills . | . . . . . . . . . . . . . . . . Hacking | -11 -10 -9 -9 -8 -7 -7 -7 -5 -5 -5 -4 -4 -4 -4 -3 --------- Run | Yrd Mat Mat Min Mat Fac Sto Rec Fac Gar Fac Fac Upp Upp Zhi Pro Machines Accessed 60 | . 4 2 . 5 14 4 8 6 3 2 2 1 . 9 . Terminals 36 | . 4 2 . 5 10 4 4 2 3 . 2 . . . . Fabricators 2 | . . . . . . . . 1 . 1 . . . . . Repair Stations . | . . . . . . . . . . . . . . . . Recycling Units 8 | . . . . . 3 . 4 1 . . . . . . . Scanalyzers . | . . . . . . . . . . . . . . . . Garrison Access 4 | . . . . . 1 . . 2 . 1 . . . . . Total Hacks 183 | . 13 11 . 16 38 6 19 17 3 3 8 1 . 48 . Successful 152 | . 8 9 . 14 34 2 12 13 3 3 5 1 . 48 . Failed 30 | . 5 1 . 2 4 4 7 4 . . 3 . . . . Catastrophic 1 | . . . . . . 1 . . . . . . . . . Database Lockouts 1 | . . 1 . . . . . . . . . . . . . Manual 76 | . 10 10 . 12 19 4 7 7 . 2 5 . . . . Terminals 109 | . 13 11 . 16 31 6 12 9 3 . 8 . . . . Fabricators 2 | . . . . . . . . 1 . 1 . . . . . Repair Stations . | . . . . . . . . . . . . . . . . Recycling Units 15 | . . . . . 6 . 7 2 . . . . . . . Scanalyzers . | . . . . . . . . . . . . . . . . Garrison Access 8 | . . . . . 1 . . 5 . 2 . . . . . Terminal Hacks 104 | . 4 6 . 9 18 2 6 3 3 . 4 1 . 48 . Record 39 | . . . . . 1 . 1 . . . 1 . . 36 . Part Schematic 5 | . . . . . . . 1 . . . . . . 4 . Robot Schematic 2 | . . . . . 2 . . . . . . . . . . Robot Analysis 10 | . . 3 . 1 2 . . . . . . . . 4 . Prototype ID Bank 14 | . . 1 . 3 4 . 2 . . . . . . 4 . Open Door 4 | . . . . . . 2 . . 1 . . 1 . . . Level Access Points 1 | . . . . 1 . . . . . . . . . . . Branch Access Points 1 | . . . . . 1 . . . . . . . . . . Emergency Access Points 1 | . . . . . . . . . 1 . . . . . . Machine Index 1 | . . . . . 1 . . . . . . . . . . Terminal Index 2 | . . 1 . 1 . . . . . . . . . . . Repair Station Index 1 | . . 1 . . . . . . . . . . . . . Alert Level 6 | . 2 . . 1 2 . 1 . . . . . . . . Unreport Threat 5 | . . . . 1 1 . 1 . . . 2 . . . . Locate Traps 5 | . 1 . . . 1 . . 2 . . 1 . . . . Security Status 1 | . . . . . . . . 1 . . . . . . . Hauler Manifests 1 | . 1 . . . . . . . . . . . . . . Registered Components 1 | . . . . . 1 . . . . . . . . . . Registered Prototypes 1 | . . . . 1 . . . . . . . . . . . Zone Layout 2 | . . . . . 2 . . . . . . . . . . Security Stations 1 | . . . . . . . . . 1 . . . . . . Fabricator Hacks 2 | . . . . . . . . 1 . 1 . . . . . Build 2 | . . . . . . . . 1 . 1 . . . . . Repair Station Hacks . | . . . . . . . . . . . . . . . . Recycling Unit Hacks 8 | . . . . . 3 . 4 1 . . . . . . . Retrieve Components 8 | . . . . . 3 . 4 1 . . . . . . . Scanalyzer . | . . . . . . . . . . . . . . . . Garrison Access Hacks 3 | . . . . . 1 . . 2 . . . . . . . Unlock Access 1 | . . . . . . . . 1 . . . . . . . Seal Access 2 | . . . . . 1 . . 1 . . . . . . . Unauthorized Hacks 35 | . 4 3 . 5 12 . 2 6 . 2 1 . . . . Terminals 29 | . 4 3 . 5 10 . 2 4 . . 1 . . . . Track 5 | . . 1 . 2 1 . . 1 . . . . . . . Assimilate 3 | . . . . . 2 . 1 . . . . . . . . Botnet 15 | . 3 1 . 2 5 . 1 2 . . 1 . . . . Operators 6 | . 1 1 . 1 2 . . 1 . . . . . . . Fabricators . | . . . . . . . . . . . . . . . . Repair Stations . | . . . . . . . . . . . . . . . . Recycling Units 3 | . . . . . 2 . . 1 . . . . . . . Reject 3 | . . . . . 2 . . 1 . . . . . . . Scanalyzers . | . . . . . . . . . . . . . . . . Garrison Access 3 | . . . . . . . . 1 . 2 . . . . . Redirect 1 | . . . . . . . . . . 1 . . . . . Watchers 2 | . . . . . . . . 1 . 1 . . . . . Data Cores Recovered 3 | . 1 . . 1 . . . 1 . . . . . . . Used 2 | . 1 . . . . . . 1 . . . . . . . Hacking Detections 28 | . 4 1 . 3 10 3 5 2 . . . . . . . Full Trace Events 2 | . . . . . . 1 1 . . . . . . . . Feedback Events 1 | . . . . . . 1 . . . . . . . . . Hackware Fried 1 | . . . . . . 1 . . . . . . . . . Feedback Blocked . | . . . . . . . . . . . . . . . . Robot Schematics Acquired 2 | . . . . . 2 . . . . . . . . . . Robots Built 4 | . . . . . . . . 3 . 1 . . . . . Authchips . | . . . . . . . . . . . . . . . . Time 143 | . . . . . . . . 76 . 67 . . . . . Total Robot Build Rating 19 | . . . . . . . . 15 . 4 . . . . . Part Schematics Acquired 5 | . . . . . . . 1 . . . . . . 4 . Parts Built . | . . . . . . . . . . . . . . . . Authchips . | . . . . . . . . . . . . . . . . Time . | . . . . . . . . . . . . . . . . Total Part Build Rating . | . . . . . . . . . . . . . . . . Parts Repaired . | . . . . . . . . . . . . . . . . Time . | . . . . . . . . . . . . . . . . Parts Recycled . | . . . . . . . . . . . . . . . . Recycled Matter . | . . . . . . . . . . . . . . . . Retrieved Matter . | . . . . . . . . . . . . . . . . Retrieved Components 12 | . . . . . 3 . 8 1 . . . . . . . Parts Scanalyzed . | . . . . . . . . . . . . . . . . Part Schematics Acquired . | . . . . . . . . . . . . . . . . Parts Damaged . | . . . . . . . . . . . . . . . . Bothacking | -11 -10 -9 -9 -8 -7 -7 -7 -5 -5 -5 -4 -4 -4 -4 -3 ------------ Run | Yrd Mat Mat Min Mat Fac Sto Rec Fac Gar Fac Fac Upp Upp Zhi Pro Used RIF Installer 1 | . . . . . . . . . 1 . . . . . . Robots Hacked 1 | . . . . . . . . . . 1 . . . . . Non-combat 1 | . . . . . . . . . . 1 . . . . . Combat . | . . . . . . . . . . . . . . . . Robot Hacks Applied 1 | . . . . . . . . . . 1 . . . . . parse_system 1 | . . . . . . . . . . 1 . . . . . Relay Couplers Released 4 | . . . . . . . . . 4 . . . . . . Machine Destruction 4 | . . . . . . . . . 4 . . . . . . Attached 1 | . . . . . . . . . 1 . . . . . . Fabnet Peak Effective % . | . . . . . . . . . . . . . . . . Robots Rewired 8 | . . . . . . . . . 7 . 1 . . . . Allies Hacked . | . . . . . . . . . . . . . . . . Hacks Repelled . | . . . . . . . . . . . . . . . . Allies | -11 -10 -9 -9 -8 -7 -7 -7 -5 -5 -5 -4 -4 -4 -4 -3 -------- Run | Yrd Mat Mat Min Mat Fac Sto Rec Fac Gar Fac Fac Upp Upp Zhi Pro Total Allies 14 | . . . . . 2 . . 3 7 1 1 . . . . Largest Group 7 | . . . . . 1 . . 3 7 7 5 . . . . Highest-Rated Group 235 | . . . . . 26 . . 87 235 235 202 . . . . Highest-Rated Ally 49 | . . . . . 26 . . 29 49 49 49 . . . . Total Orders 7 | . . . . . 3 . . . 3 1 . . . . . STAY 4 | . . . . . 2 . . . 1 1 . . . . . FOLLOW 3 | . . . . . 1 . . . 2 . . . . . . Ally Attacks 83 | . . . . . . . . 32 . 36 15 . . . . Total Damage 2841 | . . . . . . . . 509 . 816 1516 . . . . Kills 13 | . . . . . . . . 3 . 5 5 . . . . Allies Corrupted 3 | . . . . . . . . 1 . 2 . . . . . Allies Melted . | . . . . . . . . . . . . . . . . Intel | -11 -10 -9 -9 -8 -7 -7 -7 -5 -5 -5 -4 -4 -4 -4 -3 ------- Run | Yrd Mat Mat Min Mat Fac Sto Rec Fac Gar Fac Fac Upp Upp Zhi Pro Robot Analysis Total 10 | . . 3 . 1 2 . . . . . . . . 4 . Derelict Logs Recovered 2 | . . . . . . . . . . . . 2 . . . Drone Launches . | . . . . . . . . . . . . . . . . Drone Recoveries . | . . . . . . . . . . . . . . . . Exploration | -11 -10 -9 -9 -8 -7 -7 -7 -5 -5 -5 -4 -4 -4 -4 -3 ------------- Run | Yrd Mat Mat Min Mat Fac Sto Rec Fac Gar Fac Fac Upp Upp Zhi Pro Turns Passed 5233 | 70 771 204 3 583 606 370 169 388 868 244 131 472 79 88 187 Spaces Moved 8521 | 41 331 309 9 810 1287 454 543 686 1812 187 284 753 262 227 526 Core 45 | 3 . 3 . . . . . . 1 . . . . . 38 Treads 382 | 38 331 13 . . . . . . . . . . . . . Legs . | . . . . . . . . . . . . . . . . Wheels . | . . . . . . . . . . . . . . . . Hover . | . . . . . . . . . . . . . . . . Flight 8094 | . . 293 9 810 1287 454 543 686 1811 187 284 753 262 227 488 Fastest Speed 26 | 50 160 32 34 37 32 29 29 29 29 29 26 27 30 30 26 Average Speed 38 | 151 160 38 42 37 32 29 29 29 33 62 35 28 30 30 33 Slowest Speed 160 | 160 160 160 110 37 32 32 29 94 150 97 95 95 30 100 100 Overloaded Moves 83 | . . . . . . . . . . . . . . . 83 Propulsion Burnouts . | . . . . . . . . . . . . . . . . Robots Hopped 34 | . . 2 . 7 10 2 . 2 10 1 . . . . . Cave-ins Triggered . | . . . . . . . . . . . . . . . . Teleports 1 | . . . . . . . . . . . . . . 1 . Exploration Rate (%) 45 | 3 49 27 6 57 40 71 92 17 99 4 8 80 53 62 67 Regions Visited 15 Branch Regions 7 Pre-discovered Areas 3 | . . . . . . . . . . . . . . 3 . Known Exits Taken 10 | . . . . 1 1 1 1 1 . 1 1 1 1 1 . Unknown Exits Taken 4 | 1 1 1 1 . . . . . . . . . . . . Scrap Searched 8 | . . . . . . . . . . . . 3 3 . 2 Spaces Dug 8 | . . . . . . 3 . 4 . . . 1 . . . Terrain Destroyed 135 | . . . . 23 1 3 . 4 61 . . 43 . . . Melee 8 | . . . . . . 3 . 4 . . . 1 . . . Projectile 1 | . . . . . 1 . . . . . . . . . . AOE 126 | . . . . 23 . . . . 61 . . 42 . . . Terrain Rammed . | . . . . . . . . . . . . . . . . Walls Destroyed . | . . . . . . . . . . . . . . . . Machines Disabled . | . . . . . . . . . . . . . . . . Actions | -11 -10 -9 -9 -8 -7 -7 -7 -5 -5 -5 -4 -4 -4 -4 -3 --------- Run | Yrd Mat Mat Min Mat Fac Sto Rec Fac Gar Fac Fac Upp Upp Zhi Pro Total 10190 | 46 520 378 8 1058 1447 617 555 866 2043 302 312 1003 261 239 535 Wait 1236 | . 142 24 . 204 139 69 2 142 180 101 13 218 . . 2 Move 8432 | 40 330 304 8 796 1266 449 542 681 1784 184 283 752 261 226 526 Hop 33 | . . 2 . 6 10 2 . 2 10 1 . . . . . Pick Up 45 | . 9 6 . 7 4 5 3 4 4 . 1 1 . . 1 Fast Attach 57 | 6 4 9 . 2 2 6 3 3 5 4 2 5 . 6 . Attach 29 | . . 3 . 1 3 2 . 4 3 1 4 4 . 1 3 Detach 21 | . 2 2 . . . 2 . 3 3 1 2 3 . 1 2 Swap 28 | . 2 . . 4 1 8 . 1 4 1 3 3 . . 1 Drop 70 | . 3 12 . 8 5 10 5 4 9 2 2 7 . 3 . Fire 94 | . 28 16 . 30 10 . . . 1 1 . 8 . . . Melee 73 | . . . . . 7 42 . 5 7 6 2 2 . 2 . Ram . | . . . . . . . . . . . . . . . . Kick . | . . . . . . . . . . . . . . . . Crush . | . . . . . . . . . . . . . . . . Escape Stasis 39 | . . . . . . 22 . 17 . . . . . . . Rewire 33 | . . . . . . . . . 33 . . . . . . Trap . | . . . . . . . . . . . . . . . . Miscellaneous . | . . . . . . . . . . . . . . . . Route ------- -11/Scrapyard -10/Materials (discovered 3 exits: *Mat / [*Min x2]) -9/Materials (discovered 2 exits: *Mat / [*Min]) -9/Mines -8/Materials (discovered 3 exits: *Fac x3) -7/Factory (discovered 5 exits: [*Fac x2] / *Sto / *Low x2) -7/Storage -7/Recycling -5/Factory (discovered 2 exits: *Upp / Gar) -5/Garrison (discovered 3 exits: *Fac x3) -5/Factory -4/Factory -4/Upper Caves -4/Upper Caves -4/Zhirov -3/Proximity Caves History --------- Turn | Location | Event 8 | -11/Scrapyard | Discovered new exit (range 15) 71 | -11/Scrapyard | Entered Materials 193 | -10/Materials | Discovered new exit (range 15) 316 | -10/Materials | Build established: Mutant 428 | -10/Materials | Discovered new exit (range 14) 818 | -10/Materials | Discovered new exit (range 9) 842 | -10/Materials | Entered another Materials area 842 | -9/Materials | Evolved 2 slots: Utility x2 1023 | -9/Materials | Discovered new exit (range 4) 1030 | -9/Materials | Central database locked down 1042 | -9/Materials | Discovered new exit (range 11) 1046 | -9/Materials | Entered Mines 1046 | -9/Mines | Discovered new exit (range 9) 1049 | -9/Mines | Entered Materials 1049 | -8/Materials | Evolved 2 slots: Utility x2 1304 | -8/Materials | Identified exit to Factory 1331 | -8/Materials | Build established: Wizard-Mutant 1406 | -8/Materials | Destroyed 7 combat bots 1632 | -8/Materials | Entered Factory 1632 | -7/Factory | Evolved 2 slots: Propulsion x1, Utility x1 1728 | -7/Factory | Discovered new exit (range 10) 1925 | -7/Factory | Build established: Wizard-Sprinter 2019 | -7/Factory | Identified exit to Storage 2019 | -7/Factory | Identified exit to Lower Caves 2113 | -7/Factory | Discovered new exit (range 16) 2232 | -7/Factory | Discovered new exit (range 4) 2238 | -7/Factory | Entered Storage 2444 | -7/Storage | Hacking Suite fried by hacking feedback 2475 | -7/Storage | Lost 3 parts (3u) 2606 | -7/Storage | Build established: Hacker-Sprinter 2607 | -7/Storage | Used back door to open Recycling access 2607 | -7/Storage | Discovered new exit (range 5) 2607 | -7/Storage | Identified exit to Recycling 2608 | -7/Storage | Entered Recycling 2657 | -7/Recycling | Discovered new exit (range 15) 2776 | -7/Recycling | Identified exit to Factory 2777 | -7/Recycling | Entered Factory 2777 | -5/Factory | Evolved 4 slots: Utility x4 2830 | -5/Factory | Discovered new exit (range 14) 2921 | -5/Factory | Fabricated G-50 Soldier (x3) 3051 | -5/Factory | Identified exit to Upper Caves 3159 | -5/Factory | Spotted B-75 Beast 3164 | -5/Factory | Identified exit to Garrison 3165 | -5/Factory | Entered Garrison 3165 | -5/Garrison | Discovered recently destroyed garrison 3263 | -5/Garrison | Discovered new exit (range 12) 3271 | -5/Garrison | Identified exit to Factory 3328 | -5/Garrison | Discovered exit to Factory (range 6) 3373 | -5/Garrison | Learned Factory security intel 3459 | -5/Garrison | Attempted to access garrison exit controls, blocked by remote lockdown 3505 | -5/Garrison | Attempted to access garrison exit controls, blocked by remote lockdown 3640 | -5/Garrison | Discovered exit to Factory (range 11) 3653 | -5/Garrison | Phase Generator disabled 3745 | -5/Garrison | Installed Relay Interface Framework 3792 | -5/Garrison | Garrison Relay disabled 4033 | -5/Garrison | Entered Factory 4033 | -5/Factory | Accompanied by 7 allies 4096 | -5/Factory | Discovered new exit (range 5) 4106 | -5/Factory | Fabricated I-36 Angel? 4110 | -5/Factory | Lost 3 allies 4184 | -5/Factory | Identified exit to Factory 4277 | -5/Factory | Entered another Factory area 4277 | -4/Factory | Accompanied by 5 allies 4277 | -4/Factory | Evolved 2 slots: Propulsion x1, Utility x1 4328 | -4/Factory | Spotted B-86 Titan 4338 | -4/Factory | Lost 3 parts (2u1w) 4372 | -4/Factory | Lost 5 allies 4401 | -4/Factory | Discovered new exit (range 15) 4404 | -4/Factory | Identified exit to Upper Caves 4408 | -4/Factory | Entered Upper Caves 4550 | -4/Upper Caves | Learned Research terminal intel 4594 | -4/Upper Caves | Identified exit to Upper Caves 4707 | -4/Upper Caves | Build established: Wizard-Scout 4853 | -4/Upper Caves | Attracted the attention of an 0b10 checkpoint 4880 | -4/Upper Caves | Entered another Upper Caves area 4893 | -4/Upper Caves | Lost 3 parts (1n2u) 4947 | -4/Upper Caves | Discovered new exit (range 13) 4948 | -4/Upper Caves | Encountered a Warlord checkpoint 4956 | -4/Upper Caves | Identified exit to Zhirov 4959 | -4/Upper Caves | Entered Zhirov 4959 | -4/Zhirov | Discovered new exit (range 3) 4965 | -4/Zhirov | Met Zhirov 4972 | -4/Zhirov | Learned location of Quarantine (-2) 4972 | -4/Zhirov | Learned location of Testing (-3) 4972 | -4/Zhirov | Learned location of Command (-1) 4977 | -4/Zhirov | Zhirov requested help retrieving the SGEMP Prototype 4986 | -4/Zhirov | Found Alien Artifact 4986 | -4/Zhirov | Identified Transdimensional Reconstructor 4986 | -4/Zhirov | Warped through subspace 4999 | -4/Zhirov | Found Alien Artifact 4999 | -4/Zhirov | Identified Integrated Reactor 4999 | -4/Zhirov | Installed Integrated Reactor, increased core energy generation (+10) 5039 | -4/Zhirov | Identified exit to Proximity Caves 5047 | -4/Zhirov | Entered Proximity Caves 5133 | -3/Proximity Caves | Attracted the attention of an 0b10 checkpoint 5155 | -3/Proximity Caves | Spotted B-86 Titan 5187 | -3/Proximity Caves | Lost 7 parts (1p2n4u) 5194 | -3/Proximity Caves | Attracted the attention of an 0b10 base 5216 | -3/Proximity Caves | Core integrity fell below 50% 5225 | -3/Proximity Caves | Core integrity fell below 20% 5234 | -3/Proximity Caves | Destroyed by S-43 Plague with Heavy Machine Gun Last Messages --------------- 05147_ Cld. VTOL Module destroyed. 05156_ Adv. Target Analyzer destroyed. 05156_ Hacking Suite destroyed. 05156_ Penetrated by Slug. 05156_ System Shield destroyed. 05159_ Slug penetrates Wall. 05168_ Searching scrap... 05168_ Found Com. Matter Pod. 05168_ Found Imp. Remote Shield. 05168_ Found Imp. Sensor Array. 05168_ Found 14 Matter. 05169_ Acquired 14 matter. 05169_ Acquired Imp. Sensor Array. 05193_ Relay Coupler [Grunt] destroyed. 05201_ Imp. Trap Scanner destroyed. 05213_ Cld. VTOL Module destroyed. 05217_ Adv. System Shield destroyed. 05220_ Critical hit (Burn: +50). 05221_ Hacking Suite destroyed. 05229_ Critical hit (Burn: +50). Map ----- +----------------------------------------------------+ | ??????????# #?? # #???# #?????????????????? | | ??????????# # # #???# #?????????????????? | | ??##??????# ## ## # "# #####?????????????? | | ?## #####?# # # "# ## ##????????????? | | ?# #?# + # "# ####?????????? | | ?# #?# + # ##????????? | | ?# #### # " " + #????????? | | ?# ## # """"" + #????????? | | ?# # # ## #???????? | | ?# # ?# ####### #???????? | | ?## # #?"" ??# #?????? ##???????? | | ??## ## #??" ??# #???????##????????? | | ???# ## #??" """???# ##????????????????? | | ??# ## ######++######## ##???????????????? | | ??# ### ##??????????????? | | ??## ##?# Y #??????????????? | | ???############## ## ##### #??????????????? | | ????????# #???# ## ##???# ##??????????????? | | ?????????# #### ## g#???## #???????????????? | | ??????????# ## g##### ##???????????????? | | ??????????# ##### #????????????????? | | ??????????# ##?## g ##????????????????? | | ??????????## #??# ##ss# ###?????????????????? | | ???????????## #?## ##s # #?????##????????????? | | ????????????# ### ##s # #???? ###???????#??? | | ????????????# # ## @# #??? ##????## ?? | | ???????????## # ## # #??# #???? ?? | | ??????????## # ###### ### #???? #?? | | ??????????# #????# #???? #?? | | ??????????## #???## #???? #?? | | ???????????###### #???# #### #??## #?? | | ????????????????## #??# ##????? ### ##? | | ????##???????????# ##?## #?????????# #? | | ????# ##????????## #??### ##?###????# #? | | ????# ##???????# #???# ### #???## #?? | | ????# ###?????# ###?### ##??# #?? | | ????# #?????? ## ##??#g #### #?? | | ????# #??????? ## ##?# ## #??? | | ????## ##??????# # ### !#??? | | ????## ##?????# ## ##??? | | ##### ##????# ### ! #???? | | # ###??# ## ##???? | | #### #?# ### ##???? | | ## #?# ### ##### | | #??## | | #???### | | ##### ## ## ##????## | | #???# #### ### #?????# | | ##???# ##??######?# #????# # | | ###?### ##??????????# ##?? ## | +----------------------------------------------------+ Best States ------------- Heat Dissipation 43 Energy Generation 31 Energy Capacity 310 Matter Stores 300 Matter Capacity 300 Sight Range 16 Robot Scan Range 16 Terrain Scan Density 10 Jamming Range 12 Additional Mass Support 9 Armor Coverage 150 Resistance: EM 15 Utility Shielding 90 Phase Shifting 5 Evasion (%) 79 Target Analysis 8 Recoil Reduction 2 Matter Filtering 50 Offensive Hacking 50 Defensive Hacking 46 Relay Coupler Types 1 Relay Coupler Value 45 Item Schematics ----------------- Hacking Suite | -7/Recycling | Hacked Assault Drone Bay | -4/Zhirov | Free Exp. Heat Sink | -4/Zhirov | Free Exp. Optical Array | -4/Zhirov | Free Imp. Arc Thrower | -4/Zhirov | Free Robot Schematics ------------------ S-27 Virus | -7/Factory | Hacked K-01 Serf | -7/Factory | Hacked Fabricated ------------ G-50 Soldier | x3 | -5/Factory | Preloaded I-36 Angel | x1 | -5/Factory | Preloaded Alien Tech Used ----------------- Transdimensional Reconstructor Integrated Reactor Achievements -------------- None Challenges ------------ None Game ------ Seed SapperProtonShredder Manual? 0 Play Time 01:14:08 Cumulative 119.9 hours Start 2024.07.08 @ 19:39:02 End 2024.07.08 @ 21:04:23 Sessions 1 Manual Loads 0 Difficulty Rogue Special Mode None Game No. 145 Rogue 139 Adventurer 6 Explorer 0 Win Type - Total 1 Types 1/0/0/0/0/0/0/0/0 Lore% 40 Gallery% 63 Achievement% 45 Wizard Run 0 Options --------- Layout 0 ASCII 0 Keyboard 1 Movement Numpad Keybinds 0 Fullscreen 0 Font 14/Smallcaps Map View 76x50 Zoom Use 0% Tactical HUD 1 Map Filters NONE Filters NONE Steam 1 RUN: 8781b9f5-09d3-4d2b-8bb7-2aea497bb34c